Workbook

Sheet FCPO
A1: CRUDE PALM OIL (FCPO) Futures
A3: Tender Summary For The Last 6 Months
G4: LOCATION
A5: Month | B5: Tender | C5: Retender | D5: TOTAL | G5: Butterworth | H5: Port Klang | I5: Pasir Gudang | J5: TOTAL
A6: 2023-10-01 | B6: 3946 | C6: 2117 | D6: =SUM(B6:C6) -> 6063 | G6: 1056 | H6: 2884 | I6: 6 | J6: =SUM(G6:I6) -> 3946
A7: 2023-11-01 | B7: 2321 | C7: 1112 | D7: =SUM(B7:C7) -> 3433 | G7: 861 | H7: 1460 | I7: 0 | J7: 2321
A8: 2023-12-23 | B8: 1576 | C8: 1027 | D8: =SUM(B8:C8) -> 2603 | G8: 422 | H8: 1054 | I8: 100 | J8: 1576
A9: 2024-01-20 | B9: 1830 | C9: 505 | D9: =SUM(B9:C9) -> 2335 | G9: 553 | H9: 1277 | I9: 0 | J9: 1830
A10: 2024-02-24 | B10: 1577 | C10: 450 | D10: =SUM(B10:C10) -> 2027 | G10: 332 | H10: 1245 | I10: 0 | J10: =SUM(G10:I10) -> 1577
A11: 2024-03-24 | B11: 1685 | C11: 222 | D11: =SUM(B11:C11) -> 1907 | G11: 125 | H11: 1560 | I11: 0 | J11: 1685
A12: TOTAL | B12: =SUM(B6:B11) -> 12935 | C12: =SUM(C6:C11) -> 5433 | D12: =SUM(D6:D11) -> 18368 | G12: =SUM(G6:G11) -> 3349 | H12: =SUM(H6:H11) -> 9480 | I12: =SUM(I6:I11) -> 106 | J12: =SUM(J6:J11) -> 12935
G14: * summary above does not include retender.

Sheet FEPO
A1: EAST CRUDE PALM OIL (FEPO) Futures
A3: Tender Summary For The Last 6 Months
G4: LOCATION
A5: Month | B5: Tender | C5: Retender | D5: TOTAL | G5: Sandakan | H5: Lahad Datu | I5: Bintulu | J5: TOTAL
A6: 2023-07-01 | B6: 0 | C6: 0 | D6: =SUM(B6:C6) -> 0 | G6: 0 | H6: 0 | I6: 0 | J6: =SUM(G6:I6) -> 0
A7: 2023-08-01 | B7: 0 | C7: 0 | D7: 0 | G7: 0 | H7: 0 | I7: 0 | J7: =SUM(G7:I7) -> 0
A8: 2023-09-01 | B8: 0 | C8: 0 | D8: =SUM(B8:C8) -> 0 | G8: 0 | H8: 0 | I8: 0 | J8: =SUM(G8:I8) -> 0
A9: 2023-10-01 | B9: 0 | C9: 0 | D9: =SUM(B9:C9) -> 0 | G9: 0 | H9: 0 | I9: 0 | J9: =SUM(G9:I9) -> 0
A10: 2023-11-01 | B10: 0 | C10: 0 | D10: =SUM(B10:C10) -> 0 | G10: 0 | H10: 0 | I10: 0 | J10: =SUM(G10:I10) -> 0
A11: 2023-12-01 | B11: 0 | C11: 0 | D11: =SUM(B11:C11) -> 0 | G11: 0 | H11: 0 | I11: 0 | J11: 0
A12: TOTAL | B12: =SUM(B6:B11) -> 0 | C12: =SUM(C6:C11) -> 0 | D12: =SUM(D6:D11) -> 0 | G12: =SUM(G6:G11) -> 0 | H12: =SUM(H6:H11) -> 0 | I12: =SUM(I6:I11) -> 0 | J12: =SUM(J6:J11) -> 0
G13: * summary above does not include retender.
... 1 more rows
